bitfinex-derivatives/quotes_BNBF0:USTF0_20250807
["timestamp","ask_amount","ask_price","bid_price","bid_amount"]
[1754528917338,0.87145637,771.98,771.27,1.019]
[1754528918239,0.87145637,771.99,771.27,1.019]
[1754528918742,0.87145637,772.0,771.27,1.019]
[1754528919442,0.87145637,772.03,771.27,1.019]
[1754528920842,0.87092731,772.03,771.27,1.019]
[1754528921242,0.87092731,772.02,771.27,1.019]
[1754528922240,0.87092731,772.01,771.27,1.019]
[1754528924244,0.87092731,772.0,771.27,1.019]
[1754528925239,0.87092731,771.99,771.27,1.019]
[1754528925941,0.87092731,772.07,771.27,1.019]
[1754528926440,1.1651013,772.29,771.27,1.019]
[1754528926441,0.87092731,772.06,771.27,1.019]
[1754528926742,0.87092731,772.03,771.27,1.019]
[1754528927246,0.87092731,772.02,771.27,1.019]
[1754528928147,0.87092731,772.03,771.27,1.019]
[1754528928447,0.87092731,772.02,771.27,1.019]
[1754528928643,0.87092731,772.05,771.27,1.019]
[1754528929347,0.87092731,772.0,771.27,1.019]
[1754528930049,0.87092731,772.01,771.27,1.019]
[1754528931446,0.87092731,771.99,771.27,1.019]
[1754528933746,0.87092731,771.98,771.27,1.019]
[1754528937352,0.87092731,771.98,771.14,0.22550179]
[1754528938554,0.87092731,771.96,771.16,1.1552675]
[1754528939151,0.87092731,771.96,771.15,1.1552675]
[1754528940054,0.87092731,771.96,771.16,1.224]
[1754528940350,0.87092731,771.98,771.16,1.224]
[1754528941250,0.87092731,771.97,771.16,1.224]
[1754528941455,0.87092731,771.98,771.16,1.224]
[1754528942654,0.87092731,771.97,771.16,1.224]
[1754528942856,0.87092731,771.96,771.16,1.224]
[1754528943155,0.87092731,771.97,771.16,1.224]
[1754528944757,0.87092731,771.96,771.16,1.224]
[1754528945256,0.87092731,771.97,771.16,1.224]
[1754528945857,0.87092731,771.96,771.16,1.224]
[1754528946361,0.87092731,771.97,771.16,1.224]
[1754528947059,0.87092731,771.96,771.16,1.224]
[1754528947259,1.1651013,772.1,771.16,1.224]
[1754528947260,0.87092731,771.97,771.16,1.224]
[1754528947765,0.87092731,771.96,771.16,2.3792675]
[1754528948961,0.87092731,771.97,771.16,1.224]
[1754528949164,0.87092731,771.96,771.16,2.3792675]
[1754528949659,0.87092731,771.97,771.16,1.224]
[1754528949864,0.87092731,771.96,771.16,2.3792675]
[1754528950361,0.87092731,771.97,771.16,1.224]
[1754528952466,0.87092731,771.98,771.16,1.224]
[1754528952663,0.87092731,771.99,771.16,2.3792675]
[1754528955672,0.87092731,772.39,771.16,1.224]
[1754528955872,0.87092731,772.38,771.24,1.1552675]
[1754528956069,0.87092731,772.38,771.25,1.1552675]
[1754528956269,0.87092731,772.3,771.45,1.1552675]
[1754528956875,0.87092731,772.33,771.49,1.1552675]
[1754528957371,0.87092731,772.45,771.35,1.1552675]
[1754528958175,0.87092731,772.44,771.35,1.1552675]
[1754528958471,0.87092731,772.46,771.33,1.1552675]
[1754528958774,0.87092731,772.46,771.32,1.1552675]
[1754528959277,0.87092731,772.47,771.3,1.1552675]
[1754528960171,0.87092731,772.47,771.29,1.1552675]
[1754528961272,0.87092731,772.48,771.27,1.1552675]
[1754528962177,0.87092731,772.48,771.28,1.1552675]
[1754528962476,0.87092731,772.48,771.26,1.1552675]
[1754528963377,0.87092731,772.48,771.25,1.1552675]
[1754528964173,0.87092731,772.48,771.24,1.1552675]
[1754528964373,0.87092731,772.49,771.24,1.1552675]
[1754528965179,0.22541342,772.51,771.16,1.224]
[1754528965180,0.87092731,772.48,771.25,1.1552675]
[1754528965377,0.87092731,772.49,771.24,1.1552675]
[1754528966380,0.87092731,772.49,771.23,1.1552675]
[1754528966580,0.22541342,772.51,771.16,2.3792675]
[1754528967181,0.22541342,772.51,771.2,1.1552675]
[1754528967380,0.22541342,772.51,771.19,1.1552675]
[1754528968381,0.22541342,772.51,771.16,1.224]
[1754528968382,0.22541342,772.51,771.18,1.1552675]
[1754528970283,0.22541342,772.51,771.17,1.1552675]
[1754528970583,0.22541342,772.51,771.18,1.1552675]
[1754528970779,0.22541342,772.51,771.2,1.1552675]
[1754528971184,0.22541342,772.51,771.21,1.1552675]
[1754528971383,0.22541342,772.51,771.2,1.1552675]
[1754528972284,0.22541342,772.51,771.21,1.165]
[1754528974183,0.22541342,772.51,771.21,2.3202675]
[1754528974382,0.22541342,772.51,771.21,1.165]
[1754528983790,0.22541342,772.51,771.21,2.3202675]
[1754528984188,0.22541342,772.51,771.22,1.1552675]
[1754528984488,0.87092731,772.46,771.31,1.1552675]
[1754528985090,0.87092731,772.46,771.32,1.1552675]
[1754528988492,0.87092731,772.46,771.33,0.834]
[1754528988995,0.87092731,772.45,771.33,0.834]
[1754528989294,0.87092731,772.45,771.33,1.9892675]
[1754528989695,0.87092731,772.45,771.33,0.834]
[1754528990893,0.22541342,772.51,771.33,0.834]
[1754528990894,0.87092731,772.43,771.33,0.834]
[1754528991998,0.87092731,772.49,771.33,0.834]
[1754528992596,0.87092731,772.48,771.33,0.834]
[1754528993399,0.87092731,772.47,771.33,0.834]
[1754528993599,0.87092731,772.44,771.33,0.834]
[1754528995001,0.87092731,772.45,771.33,0.834]
[1754528995299,0.87092731,772.44,771.33,0.834]
[1754528996500,0.87092731,772.42,771.33,0.834]
[1754528997299,0.87092731,772.35,771.33,0.834]
[1754529002703,0.87092731,772.36,771.33,0.834]
[1754529003505,0.87092731,772.35,771.33,0.834]
[1754529004201,0.87092731,772.36,771.33,0.834]
[1754529004503,0.87092731,772.35,771.34,1.1552675]
[1754529005306,0.87092731,772.34,771.35,1.1552675]
[1754529006306,0.87092731,772.34,771.36,1.1552675]
[1754529006901,0.87092731,772.35,771.35,1.1552675]
[1754529007303,0.87092731,772.33,771.36,1.1552675]
[1754529007504,0.87092731,772.33,771.37,1.1552675]
[1754529008308,0.87092731,772.32,771.38,1.1552675]
[1754529008709,0.87092731,772.33,771.36,1.1552675]
[1754529009310,0.87092731,772.32,771.37,1.1552675]
[1754529010413,0.87092731,772.31,771.38,1.1552675]
[1754529010713,0.87092731,772.3,771.39,1.1552675]
[1754529011412,0.87092731,772.29,771.4,1.1552675]
[1754529012309,0.87092731,772.27,771.42,1.1552675]
[1754529012614,0.87092731,772.26,771.43,1.1552675]
[1754529013012,0.87092731,772.27,771.43,1.1552675]
[1754529013313,0.87092731,772.28,771.42,1.1552675]
[1754529014309,0.87092731,772.26,771.44,1.1552675]
[1754529015211,0.87092731,772.32,771.5,1.1552675]
[1754529015511,0.87092731,772.29,771.53,1.1552675]
[1754529016813,0.87092731,772.28,771.54,1.1552675]
[1754529017413,0.87092731,772.31,771.56,1.1552675]
[1754529017914,0.87092731,772.31,771.57,1.1552675]
[1754529018727,0.87092731,772.3,771.58,1.1552675]
[1754529019818,0.87092731,772.34,771.58,1.1552675]
[1754529022414,0.87092731,772.35,771.58,1.1552675]
[1754529023320,0.87092731,772.32,771.61,1.1552675]
[1754529024617,0.87092731,772.32,771.6,1.1552675]
[1754529026625,0.87092731,772.32,771.61,1.1552675]
[1754529027322,0.87092731,772.39,771.59,2.1782675]
[1754529028621,0.87092731,772.42,771.62,1.1552675]
[1754529029225,0.87092731,772.45,771.65,1.1552675]
[1754529029427,0.87092731,772.46,771.64,1.1552675]
[1754529029722,0.87092731,772.45,771.66,1.1552675]
[1754529030426,0.87092731,772.45,771.65,1.1552675]
[1754529030624,0.87092731,772.45,771.66,1.1552675]
[1754529031526,0.87092731,772.45,771.65,1.1552675]
[1754529032227,0.87092731,772.46,771.65,1.1552675]
[1754529034424,0.87092731,772.46,771.64,1.1552675]
[1754529034628,0.87092731,772.49,771.61,1.1552675]
[1754529036426,0.87092731,772.5,771.6,1.1552675]
[1754529037029,0.87092731,772.52,771.63,1.1552675]
[1754529037331,0.87092731,772.51,771.64,1.1552675]
[1754529039630,0.87092731,772.51,771.65,1.1552675]
[1754529039834,0.87092731,772.51,771.64,1.1552675]
[1754529041233,0.87092731,772.52,771.64,1.1552675]
[1754529042337,0.87092731,772.52,771.63,1.1552675]
[1754529044337,0.87092731,772.49,771.68,1.1552675]
[1754529045039,0.87092731,772.55,771.59,1.1552675]
[1754529045339,0.87092731,772.56,771.59,1.1552675]
[1754529047138,0.87092731,772.56,771.6,1.141]
[1754529050939,0.87092731,772.57,771.6,1.141]
[1754529051140,0.87092731,772.56,771.6,1.141]
[1754529052244,0.87092731,772.57,771.6,1.141]
[1754529053946,0.87092731,772.67,771.6,1.141]
[1754529054147,0.87092731,772.7,771.6,1.141]
[1754529055146,0.87092731,772.68,771.6,1.141]
[1754529055445,0.87092731,772.69,771.6,1.141]
[1754529056849,0.87092731,772.74,771.6,1.141]
[1754529058145,0.87092731,772.76,771.6,1.141]
[1754529059648,0.87092731,772.77,771.6,1.141]
[1754529061253,0.87092731,772.77,771.59,1.1552675]
[1754529061547,0.87092731,772.77,771.58,1.1552675]
[1754529061848,0.87092731,772.77,771.59,1.1552675]
[1754529062247,0.87092731,772.75,771.61,1.1552675]
[1754529062952,0.87092731,772.73,771.64,1.1552675]
[1754529063150,0.87092731,772.69,771.69,1.1552675]
[1754529063352,0.87092731,772.74,771.62,1.1552675]
[1754529063652,0.87092731,772.77,771.66,1.1552675]
[1754529064750,0.87092731,772.79,771.67,0.801]
[1754529065355,0.87092731,772.8,771.67,0.801]
[1754529066554,0.87092731,772.79,771.67,0.801]
[1754529069356,0.87092731,772.78,771.67,0.801]
[1754529071155,0.87092731,772.76,771.67,0.801]
[1754529072462,0.87092731,772.75,771.67,0.801]
[1754529073059,0.87092731,772.72,771.68,1.1552675]
[1754529073357,0.87092731,772.71,771.69,1.1552675]
[1754529074057,0.87092731,772.71,771.7,1.1552675]
[1754529074659,0.87092731,772.64,771.79,1.1552675]
[1754529076265,0.87092731,772.65,771.79,1.1552675]
[1754529076466,0.87092731,772.66,771.8,1.1552675]
[1754529076964,0.87092731,772.65,771.8,1.1552675]
[1754529077263,0.87092731,772.66,771.8,1.1552675]
[1754529077562,0.87092731,772.65,771.8,1.1552675]
[1754529078264,0.87092731,772.72,771.72,1.1552675]
[1754529080465,0.87092731,772.72,771.67,0.801]
[1754529080466,0.87092731,772.72,771.71,1.1552675]
[1754529081363,0.87092731,772.73,771.71,1.1552675]
[1754529082269,0.87092731,772.74,771.71,1.1552675]
[1754529082570,0.87092731,772.73,771.71,1.1552675]
[1754529082767,0.87092731,772.75,771.7,1.1552675]
[1754529082965,0.87092731,772.75,771.69,1.1552675]
[1754529083468,0.87092731,772.75,771.7,1.1552675]
[1754529084466,0.87092731,772.73,771.71,1.1552675]
[1754529085364,0.87092731,772.73,771.72,1.1552675]
[1754529086570,0.87092731,772.72,771.72,1.1552675]
[1754529087372,0.87092731,772.72,771.73,1.1552675]
[1754529088273,0.87092731,772.7,771.76,1.1552675]
[1754529088472,0.87092731,772.69,771.76,1.1552675]
[1754529090369,0.87092731,772.69,771.77,1.1552675]
[1754529091273,0.87092731,772.68,771.78,1.1552675]
[1754529091474,0.87092731,772.67,771.78,1.1552675]
[1754529092769,0.87092731,772.62,771.86,1.1552675]
[1754529094477,0.87092731,772.61,771.86,1.1552675]
[1754529095882,0.87092731,772.6,771.87,1.1552675]
[1754529096082,0.87092731,772.6,771.88,1.1552675]
[1754529096479,0.87092731,772.59,771.88,1.1552675]
[1754529097782,0.87092731,772.59,771.87,1.1552675]
[1754529097982,0.87092731,772.59,771.88,1.1552675]
[1754529098281,0.87092731,772.63,771.84,1.1552675]
[1754529100186,0.87092731,772.62,771.84,1.1552675]
[1754529102588,0.87092731,772.62,771.85,1.1552675]
[1754529102984,0.87092731,772.6,771.83,1.1552675]
[1754529103285,0.87092731,772.63,771.79,1.1552675]
[1754529103687,0.87092731,772.62,771.8,1.1552675]
[1754529104487,0.87092731,772.61,771.81,1.1552675]
[1754529104787,0.87092731,772.61,771.81,2.4282675]
[1754529106391,0.87092731,772.61,771.82,1.1552675]
[1754529106891,0.87092731,772.6,771.82,1.1552675]
[1754529107786,0.87092731,772.59,771.83,1.1552675]
[1754529108288,0.87092731,772.58,771.85,1.1552675]
[1754529109391,0.87092731,772.57,771.85,1.1552675]
[1754529109589,0.87092731,772.57,771.86,1.1552675]
[1754529111091,0.87092731,772.57,771.87,1.1552675]
[1754529111296,0.87092731,772.56,771.87,1.1552675]
[1754529112398,0.87092731,772.56,771.88,1.1552675]
[1754529112593,0.87092731,772.55,771.87,1.1552675]
[1754529113298,1.1651013,772.7,771.81,1.273]
[1754529113299,0.87092731,772.52,771.92,1.1552675]
[1754529113496,0.87092731,772.51,771.93,1.1552675]
[1754529115101,0.87092731,772.55,771.87,1.1552675]
[1754529115301,0.87092731,772.55,771.88,1.1552675]
[1754529115698,0.87092731,772.64,771.81,1.273]
[1754529116101,0.87092731,772.6,771.81,1.273]
[1754529116702,0.87092731,772.52,771.81,1.273]
[1754529117399,0.87092731,772.53,771.81,1.273]
[1754529119303,0.87092731,772.54,771.81,1.273]
[1754529120305,0.87092731,772.53,771.81,1.273]
[1754529122300,0.87092731,772.54,771.81,1.273]
[1754529123109,0.87092731,772.52,771.81,1.273]
[1754529123404,0.87092731,772.53,771.81,1.273]
[1754529124307,0.87092731,772.54,771.81,1.273]
[1754529124809,0.87092731,772.49,771.81,1.273]
[1754529125407,0.87092731,772.45,771.81,1.273]
[1754529125806,0.87092731,772.44,771.81,1.273]
[1754529126006,0.87092731,772.43,771.81,1.273]
[1754529126507,0.87092731,772.44,771.81,1.273]
[1754529130907,0.87092731,772.45,771.81,1.273]
[1754529133617,0.87092731,772.47,771.81,1.273]
[1754529135317,0.87092731,772.46,771.81,1.273]
[1754529135832,0.87092731,772.49,771.81,1.273]
[1754529136119,0.87092731,772.6,771.82,1.1552675]
[1754529136316,0.87092731,772.62,771.83,1.1552675]
[1754529138622,0.87092731,772.63,771.84,1.1552675]
[1754529139722,0.87092731,772.63,771.83,1.1552675]
[1754529140325,0.87092731,772.74,771.81,1.273]
[1754529150132,0.87092731,772.66,771.81,1.273]
[1754529151138,0.87092731,772.63,771.82,1.1552675]
[1754529151337,0.87092731,772.64,771.82,1.1552675]
[1754529151837,0.87092731,772.63,771.83,1.1552675]
[1754529153636,0.87092731,772.63,771.82,1.1552675]
[1754529153940,0.87092731,772.73,771.81,1.273]
[1754529154738,0.87092731,772.72,771.81,1.273]
[1754529159742,0.87092731,772.7,771.81,1.273]
[1754529163744,0.87092731,772.64,771.81,1.1552675]
[1754529165248,0.87092731,772.65,771.8,1.1552675]
[1754529166045,0.87092731,772.65,771.81,0.913]
[1754529166750,0.87092731,772.71,771.81,0.913]
[1754529168452,0.87092731,772.72,771.81,0.913]
[1754529169753,0.87092731,772.71,771.81,0.913]
[1754529170151,0.87092731,772.7,771.81,0.913]
[1754529172557,0.87092731,772.69,771.81,0.913]
[1754529174254,0.87092731,772.7,771.81,0.913]
[1754529174554,0.87092731,772.69,771.81,0.913]
[1754529175458,0.87092731,772.7,771.81,0.913]
[1754529176253,0.87092731,772.69,771.81,0.913]
[1754529176458,0.87092731,772.61,771.85,1.1552675]
[1754529176758,0.87092731,772.59,771.88,1.1552675]
[1754529178258,0.87092731,772.63,771.83,1.1552675]
[1754529179057,0.87092731,772.71,771.83,1.1552675]
[1754529179261,0.87092731,772.7,771.81,0.913]
[1754529184968,0.87092731,772.69,771.81,0.913]
[1754529187369,0.87092731,772.68,771.81,0.913]
[1754529188972,0.87092731,772.59,771.87,1.1552675]
[1754529189570,0.87092731,772.59,771.81,0.913]
[1754529189571,0.87092731,772.58,771.88,1.1552675]
[1754529189868,0.87092731,772.56,771.9,1.1552675]
[1754529190369,0.87092731,772.56,771.81,0.913]
[1754529190370,0.87092731,772.56,771.91,1.1552675]
[1754529190568,0.87092731,772.55,771.91,1.1552675]
[1754529191370,0.87092731,772.55,771.92,1.1552675]
[1754529191567,0.87092731,772.56,771.9,1.1552675]
[1754529192267,0.87092731,772.55,771.91,1.1552675]
[1754529193273,0.87092731,772.54,771.92,1.1552675]
[1754529194270,0.87092731,772.54,771.81,0.913]
[1754529194271,0.87092731,772.53,771.93,1.1552675]
[1754529194873,0.87092731,772.53,771.81,0.913]
[1754529194874,0.87092731,772.56,771.89,1.1552675]
[1754529195274,0.87092731,772.54,771.92,1.1552675]
[1754529195474,0.87092731,772.54,771.91,1.1552675]
[1754529195674,0.87092731,772.54,771.92,1.1552675]
[1754529195873,0.87092731,772.56,771.89,1.1552675]
[1754529201884,0.22525803,772.97,771.86,1.1552675]
[1754529201885,0.87092731,772.58,771.86,1.1552675]
[1754529202081,0.87092731,772.59,771.87,1.1552675]
[1754529202581,0.87092731,772.57,771.89,1.1552675]
[1754529204580,0.87092731,772.56,771.9,1.1552675]
[1754529205682,0.87092731,772.55,771.91,1.1552675]
[1754529208089,0.87092731,772.55,771.92,1.1552675]
[1754529208992,0.87092731,772.55,771.91,1.1552675]
[1754529210789,0.87092731,772.56,771.9,1.1552675]
[1754529211988,0.87092731,772.53,771.93,1.1552675]
[1754529212592,0.87092731,772.53,771.94,1.1552675]
[1754529214793,0.87092731,772.53,771.93,1.1552675]
[1754529214993,0.87092731,772.53,771.81,0.913]
[1754529214994,0.87092731,772.52,771.94,1.1552675]
[1754529216294,0.87092731,772.53,771.94,1.1552675]
[1754529216490,0.87092731,772.52,771.94,1.1552675]
[1754529217590,0.87092731,772.6,771.84,1.1552675]
[1754529218492,0.87092731,772.61,771.84,1.1552675]
[1754529219693,0.87092731,772.6,771.84,1.1552675]
[1754529221097,0.87092731,772.62,771.82,1.1552675]
[1754529227399,0.87092731,772.57,771.88,1.1552675]
[1754529227602,0.87092731,772.58,771.87,1.1552675]
[1754529228002,0.87092731,772.58,771.88,1.067]
[1754529229101,0.87092731,772.57,771.88,2.2222675]
[1754529231109,0.87092731,772.52,771.94,1.1552675]
[1754529235104,0.87092731,772.53,771.93,1.1552675]
[1754529236002,0.87092731,772.54,771.92,1.1552675]
[1754529237505,0.87092731,772.53,771.93,1.1552675]
[1754529241106,0.87092731,772.54,771.93,1.1552675]
[1754529242005,0.87092731,772.53,771.93,1.1552675]
[1754529244410,1.1651013,772.69,771.92,1.1552675]
[1754529244609,0.87396324,772.54,771.92,1.1552675]
[1754529245009,0.87396324,772.53,771.93,1.1552675]
[1754529245204,0.87396324,772.54,771.94,1.1552675]
[1754529245807,0.87396324,772.53,771.95,1.1552675]
[1754529248813,0.87396324,772.52,771.96,1.1552675]
[1754529249613,0.87396324,772.53,771.96,1.1552675]
[1754529251009,0.87396324,772.52,771.96,1.1552675]
[1754529251212,0.87396324,772.53,771.96,1.1552675]
[1754529251714,0.87396324,772.52,771.96,1.1552675]
[1754529252013,0.87396324,772.52,771.97,0.823]
[1754529253109,0.87396324,772.5,771.98,1.1552675]
[1754529257313,0.87396324,772.62,771.97,0.823]
[1754529260217,0.87396324,772.61,771.97,0.823]
[1754529263213,0.87396324,772.62,771.97,0.823]
[1754529263919,0.87396324,772.63,771.97,0.823]
[1754529267122,0.87396324,772.57,771.97,0.823]
[1754529267322,0.87396324,772.58,771.97,0.823]
[1754529267923,0.87396324,772.59,771.97,0.823]
[1754529268321,0.87396324,772.6,771.97,0.823]
[1754529270426,0.87396324,772.59,771.97,0.823]
[1754529270821,0.87396324,772.6,771.97,0.823]
[1754529271021,0.87396324,772.62,771.97,0.823]
[1754529272822,0.87365062,772.62,771.97,0.823]
[1754529273828,0.87365062,772.6,771.97,0.823]
[1754529274832,0.87365062,772.58,771.97,0.823]
[1754529280942,0.87365062,772.56,771.97,1.9782675]
[1754529282244,0.87365062,772.54,772.0,1.1552675]
[1754529283841,0.87365062,772.66,771.85,1.1552675]
[1754529285642,0.87365062,772.66,771.86,1.311]
[1754529291051,0.87365062,772.73,771.86,1.311]
[1754529291350,0.87365062,772.78,771.86,1.311]
[1754529291549,0.87365062,772.65,771.86,1.311]
[1754529291946,0.87365062,772.68,771.93,0.86725539]
[1754529292247,0.87365062,772.69,771.93,0.86725539]
[1754529292750,0.87365062,772.7,771.94,0.86725539]
[1754529294151,0.87365062,772.71,771.94,0.86725539]
[1754529294346,0.87365062,772.7,771.94,0.86725539]
[1754529294650,0.87365062,772.71,771.94,0.86725539]
[1754529295246,0.87365062,772.71,771.93,0.86725539]
[1754529296151,0.87365062,772.68,771.96,0.86725539]
[1754529296446,0.87365062,772.67,771.96,0.86725539]
[1754529298151,0.87365062,772.68,771.96,0.86725539]
[1754529298352,0.87365062,772.68,771.95,0.86725539]
[1754529300659,0.87365062,772.68,771.96,0.86725539]
[1754529300954,0.87365062,772.62,772.0,0.86725539]
[1754529302061,0.87365062,772.61,771.99,0.86725539]
[1754529302261,0.87365062,772.62,771.99,0.86725539]
[1754529302461,0.87365062,772.61,771.99,0.86725539]
[1754529302656,0.87365062,772.6,771.98,0.86725539]
[1754529303257,0.87365062,772.59,771.97,0.86725539]
[1754529304464,0.87298644,772.55,772.0,0.86673493]
[1754529305161,0.87298644,772.54,771.98,0.86673493]
[1754529307262,0.87298644,772.54,771.97,0.86673493]
[1754529307461,0.87298644,772.55,771.98,0.86673493]
[1754529307660,0.87298644,772.56,772.0,0.86673493]
[1754529308660,0.87298644,772.55,772.01,0.86673493]
[1754529309264,0.87298644,772.55,772.0,0.86673493]
[1754529309962,0.87298644,772.56,772.0,0.86673493]
[1754529311466,0.87298644,772.54,772.01,0.86673493]
[1754529312463,0.87298644,772.53,772.02,0.86673493]
[1754529313263,0.87298644,772.52,772.01,0.86673493]
[1754529313465,1.1651013,772.65,772.01,0.86673493]
[1754529313466,0.87298644,772.53,772.01,0.86673493]
[1754529314268,0.87298644,772.51,771.99,0.86673493]
[1754529314466,0.22526969,772.81,771.99,0.86673493]
[1754529314467,0.87298644,772.52,771.99,0.86673493]
[1754529315568,0.87298644,772.53,771.99,0.86673493]
[1754529316372,0.87298644,772.54,771.98,0.86673493]
[1754529318270,0.87298644,772.55,771.97,0.86673493]
[1754529318470,0.87298644,772.54,771.98,0.86673493]
[1754529320768,0.87298644,772.53,771.98,0.86673493]
[1754529323473,0.87298644,772.53,771.97,0.86673493]
[1754529323874,0.87298644,772.54,771.97,0.86673493]
[1754529324773,0.87298644,772.56,771.96,0.86673493]
[1754529326770,0.87298644,772.55,771.96,0.86673493]
[1754529328169,0.87298644,772.56,771.96,0.86673493]
[1754529330172,0.87298644,772.55,771.97,0.86673493]
[1754529330677,0.87298644,772.56,771.96,0.86673493]
[1754529331674,0.87298644,772.63,771.9,0.86673493]
[1754529331873,0.87298644,772.56,771.86,1.311]
[1754529332073,0.87298644,772.55,771.86,1.311]
[1754529333275,0.87298644,772.56,771.86,1.311]
[1754529336183,0.87298644,772.48,771.86,1.311]
[1754529336481,0.87298644,772.45,771.86,1.311]
[1754529336680,0.87298644,772.47,771.86,1.311]
[1754529336876,0.87298644,772.45,771.86,1.311]
[1754529337079,0.87298644,772.38,771.86,1.311]
[1754529337381,0.87298644,772.4,771.86,1.311]
[1754529338080,0.87298644,772.37,771.86,1.311]
[1754529338379,0.87298644,772.38,771.86,1.311]
[1754529339285,0.87298644,772.39,771.86,1.311]
[1754529340382,0.87298644,772.4,771.86,1.311]
[1754529340583,0.87298644,772.4,771.72,0.22524491]
[1754529340988,0.87298644,772.38,771.72,0.22524491]
[1754529341185,0.87298644,772.39,771.72,0.22524491]
[1754529342386,0.87298644,772.4,771.72,0.22524491]
[1754529342989,0.87298644,772.4,771.63,0.86673493]
[1754529343189,0.87298644,772.4,771.64,0.22536233]
[1754529343390,0.87298644,772.35,771.64,1.34536233]
[1754529343590,0.87298644,772.34,771.64,1.12]
[1754529343788,0.87298644,772.41,771.64,1.12]
[1754529343991,0.87298644,772.39,771.64,1.12]
[1754529344291,0.87298644,772.36,771.64,1.12]
[1754529345287,0.87298644,772.37,771.64,1.12]
[1754529347190,0.87298644,772.38,771.64,1.12]
[1754529347394,0.87298644,772.37,771.64,1.12]
[1754529348295,0.87298644,772.38,771.64,1.12]
[1754529350197,0.87298644,772.39,771.64,1.12]
[1754529351094,0.87298644,772.38,771.64,1.12]
[1754529351399,0.87298644,772.39,771.64,1.12]
[1754529352602,0.87298644,772.3,771.64,1.12]
[1754529352901,0.87298644,772.31,771.64,1.12]
[1754529353202,0.87298644,772.32,771.64,1.12]
[1754529353402,0.87298644,772.26,771.64,1.12]
[1754529353797,0.87298644,772.28,771.64,1.12]
[1754529355303,0.87298644,772.29,771.64,1.12]
[1754529356103,0.87298644,772.32,771.64,1.12]
[1754529357600,0.87298644,772.34,771.64,1.12]
[1754529358101,0.87298644,772.33,771.64,1.12]
[1754529359303,0.87298644,772.34,771.64,1.12]
[1754529359907,0.87298644,772.33,771.64,1.12]
[1754529360509,0.87298644,772.34,771.64,1.12]
[1754529361006,0.87298644,772.33,771.64,1.12]
[1754529362110,0.87298644,772.34,771.64,1.12]
[1754529362811,0.87298644,772.33,771.64,1.12]
[1754529363311,0.87298644,772.34,771.64,1.12]
[1754529363707,0.87298644,772.33,771.64,1.12]
[1754529365313,0.87298644,772.34,771.64,1.12]
[1754529366009,0.87298644,772.33,771.64,1.12]
[1754529366210,0.87298644,772.31,771.64,1.12]
[1754529367509,0.87298644,772.28,771.64,1.12]
[1754529368612,0.87298644,772.31,771.64,1.12]
[1754529369913,0.87298644,772.3,771.64,1.12]
[1754529371016,0.87298644,772.39,771.64,1.12]
[1754529372216,0.87298644,772.37,771.64,1.12]
[1754529373114,0.87298644,772.38,771.64,1.12]
[1754529373416,0.87298644,772.37,771.64,1.12]
[1754529376621,0.87298644,772.39,771.64,1.12]
[1754529378221,0.87298644,772.38,771.64,1.12]
[1754529380825,0.87298644,772.3,771.64,1.12]
[1754529382329,0.87298644,772.29,771.64,1.12]
[1754529382926,0.87298644,772.28,771.64,1.12]
[1754529383429,0.87298644,772.29,771.64,1.12]
[1754529385331,0.87298644,772.28,771.64,1.12]
[1754529386530,0.87298644,772.27,771.64,1.12]
[1754529388330,0.87298644,772.26,771.64,1.12]
[1754529388534,0.87298644,772.25,771.64,1.12]
[1754529389231,0.87298644,772.24,771.64,1.12]
[1754529390037,0.87298644,772.25,771.64,1.12]
[1754529390531,0.87298644,772.24,771.64,1.12]
[1754529391438,0.87298644,772.23,771.64,1.12]
[1754529392433,0.87298644,772.22,771.64,1.12]
[1754529393338,0.87298644,772.2,771.64,1.12]
[1754529394440,0.87298644,772.16,771.64,1.12]
[1754529395237,0.87298644,772.15,771.64,1.12]
[1754529396336,0.87298644,772.14,771.64,1.12]
[1754529397336,0.87298644,772.13,771.64,1.12]
[1754529399238,0.87298644,772.12,771.64,1.12]
[1754529399940,0.87298644,772.11,771.64,1.12]
[1754529400342,0.87298644,772.1,771.52,0.86673493]
[1754529400543,0.87298644,772.1,771.51,0.86673493]
[1754529401340,0.87298644,772.08,771.53,0.86673493]
[1754529402346,0.87298644,772.07,771.54,0.86673493]
[1754529403243,0.87298644,772.05,771.55,0.86673493]
[1754529403448,0.87298644,772.06,771.56,0.86673493]
[1754529403747,0.87298644,772.06,771.56,1.81173493]
[1754529404445,0.87298644,772.05,771.56,1.81173493]